fUSD/lending_fUSD_20260129
["ID","MTS","AMOUNT","RATE_DAILY","PERIOD"]
[403977617,1769702405619,-151.0,0.00038356,120]
[403977618,1769702405705,-314.569681,0.00038356,120]
[403977619,1769702405775,-151.0,0.00038356,120]
[403977620,1769702405829,-151.0,0.00038356,120]
[403977621,1769702405892,-153.736847,0.00038356,120]
[403977622,1769702405951,-314.569681,0.00038356,120]
[403977623,1769702406009,-3337.828373,0.00038356,120]
[403977624,1769702406063,-151.0,0.00038356,120]
[403977625,1769702406116,-314.569681,0.00038356,120]
[403977626,1769702406167,-3337.828373,0.00038356,120]
[403977627,1769702406224,-151.0,0.00038356,120]
[403977628,1769702406278,-174.385296,0.00038356,120]
[403977629,1769702406333,-3337.828373,0.00038356,120]
[403977630,1769702406389,-314.569681,0.00038356,120]
[403977631,1769702406442,-151.0,0.00038356,120]
[403977632,1769702406494,-3337.828373,0.00038356,120]
[403977633,1769702406550,-314.569681,0.00038356,120]
[403977634,1769702406601,-153.335055,0.00038356,120]
[403977635,1769702406652,-3337.828373,0.00038356,120]
[403977636,1769702406702,-151.0,0.00038356,120]
[403977637,1769702406754,-314.569681,0.00038356,120]
[403977638,1769702406805,-3337.828373,0.00038356,120]
[403977639,1769702406856,-151.0,0.00038356,120]
[403977640,1769702406910,-151.0,0.00038356,120]
[403977641,1769702406963,-314.569676,0.00038356,120]
[403977642,1769702407015,-3337.828373,0.00038356,120]
[403977643,1769702407066,-151.0,0.00038356,120]
[403977644,1769702407117,-151.0,0.00038356,120]
[403977645,1769702407169,-3337.828373,0.00038356,120]
[403977646,1769702407221,-151.0,0.00038356,120]
[403977647,1769702407271,-3337.828373,0.00038356,120]
[403977648,1769702407321,-151.0,0.00038356,120]
[403977649,1769702407373,-3337.828373,0.00038356,120]
[403977650,1769702407655,-965.585001,0.00038356,120]
[403977651,1769702407706,-151.0,0.00038356,120]
[403977652,1769702407759,-3337.828373,0.00038356,120]
[403977653,1769702407809,-965.585001,0.00038356,120]
[403977654,1769702407862,-151.0,0.00038356,120]
[403977655,1769702407912,-965.585001,0.00038356,120]
[403977656,1769702407964,-3337.828373,0.00038356,120]
[403977657,1769702408013,-151.0,0.00038356,120]
[403977658,1769702408064,-151.0,0.00038356,120]
[403977659,1769702408114,-965.585001,0.00038356,120]
[403977660,1769702408169,-3337.828373,0.00038356,120]
[403977661,1769702408221,-199.981936,0.00038356,120]
[403977662,1769702408273,-151.0,0.00038356,120]
[403977663,1769702408324,-965.585001,0.00038356,120]
[403977664,1769702408376,-151.0,0.00038356,120]
[403977665,1769702408431,-151.0,0.00038356,120]
[403977666,1769702408484,-199.981936,0.00038356,120]
[403977667,1769702408538,-965.585001,0.00038356,120]
[403977668,1769702408589,-151.0,0.00038356,120]
[403977669,1769702408642,-151.0,0.00038356,120]
[403977670,1769702408695,-199.981936,0.00038356,120]
[403977671,1769702408747,-151.0,0.00038356,120]
[403977672,1769702408800,-965.585001,0.00038356,120]
[403977673,1769702408855,-195.687688,0.00038356,120]
[403977674,1769702408910,-199.981936,0.00038356,120]
[403977675,1769702408963,-965.585001,0.00038356,120]
[403977676,1769702409016,-151.0,0.00038356,120]
[403977677,1769702409069,-199.981936,0.00038356,120]
[403977678,1769702409120,-965.585001,0.00038356,120]
[403977679,1769702409171,-199.981936,0.00038356,120]
[403977680,1769702409220,-151.0,0.00038356,120]
[403977681,1769702409267,-965.585001,0.00038356,120]
[403977682,1769702409318,-199.981936,0.00038356,120]
[403977683,1769702409368,-151.0,0.00038356,120]
[403977684,1769702409418,-965.585001,0.00038356,120]
[403977685,1769702409469,-199.981936,0.00038356,120]
[403977686,1769702409520,-965.585001,0.00038356,120]
[403977687,1769702409573,-199.981936,0.00038356,120]
[403977688,1769702409622,-965.585001,0.00038356,120]
[403977689,1769702409672,-199.981936,0.00038356,120]
[403977690,1769702409721,-151.0,0.00038356,120]
[403977691,1769702409772,-199.981936,0.00038356,120]
[403977692,1769702409822,-965.585001,0.00038356,120]
[403977693,1769702409869,-151.0,0.00038356,120]
[403977694,1769702409919,-151.0,0.00038356,120]
[403977695,1769702409968,-199.981936,0.00038356,120]
[403977696,1769702410018,-965.585001,0.00038356,120]
[403977697,1769702410066,-151.0,0.00038356,120]
[403977698,1769702410115,-151.0,0.00038356,120]
[403977699,1769702410164,-151.0,0.00038356,120]
[403977700,1769702410212,-199.981936,0.00038356,120]
[403977701,1769702410259,-151.0,0.00038356,120]
[403977702,1769702410305,-965.585001,0.00038356,120]
[403977703,1769702410351,-151.0,0.00038356,120]
[403977704,1769702410401,-151.0,0.00038356,120]
[403977705,1769702410447,-199.981936,0.00038356,120]
[403977706,1769702410493,-965.585001,0.00038356,120]
[403977707,1769702410541,-151.0,0.00038356,120]
[403977708,1769702410588,-151.0,0.00038356,120]
[403977709,1769702410639,-151.0,0.00038356,120]
[403977710,1769702410702,-199.981936,0.00038356,120]
[403977711,1769702410748,-965.585001,0.00038356,120]
[403977712,1769702410798,-151.0,0.00038356,120]
[403977713,1769702410845,-151.0,0.00038356,120]
[403977714,1769702410895,-151.0,0.00038356,120]
[403977715,1769702410943,-199.981936,0.00038356,120]
[403977716,1769702410990,-965.585001,0.00038356,120]
[403977717,1769702411036,-247.958132,0.00038356,120]
[403977718,1769702411082,-151.0,0.00038356,120]
[403977719,1769702411129,-151.0,0.00038356,120]
[403977720,1769702411182,-199.981936,0.00038356,120]
[403977721,1769702411227,-965.585002,0.00038356,120]
[403977722,1769702411271,-151.0,0.00038356,120]
[403977723,1769702411317,-151.0,0.00038356,120]
[403977724,1769702411363,-199.981936,0.00038356,120]
[403977725,1769702411412,-151.0,0.00038356,120]
[403977726,1769702411459,-151.0,0.00038356,120]
[403977727,1769702411509,-199.981936,0.00038356,120]
[403977728,1769702411557,-151.0,0.00038356,120]
[403977729,1769702411891,-151.0,0.00038356,120]
[403977730,1769702411942,-297.345194,0.00038356,120]
[403977731,1769702411991,-199.981933,0.00038356,120]
[403977732,1769702412039,-151.0,0.00038356,120]
[403977733,1769702412086,-151.0,0.00038356,120]
[403977734,1769702412132,-181.446401,0.00038356,120]
[403977735,1769702412182,-151.0,0.00038356,120]
[403977736,1769702412229,-151.0,0.00038356,120]
[403977737,1769702412275,-289.722212,0.00038356,120]
[403977738,1769702412323,-541.689135,0.00038356,120]
[403977739,1769702412370,-3337.828373,0.00038356,120]
[403977740,1769702412418,-151.0,0.00038356,120]
[403977741,1769702412467,-541.689135,0.00038356,120]
[403977742,1769702412514,-3337.828373,0.00038356,120]
[403977743,1769702412561,-151.0,0.00038356,120]
[403977744,1769702412609,-541.689135,0.00038356,120]
[403977745,1769702412657,-541.689135,0.00038356,120]
[403977746,1769702412705,-151.0,0.00038356,120]
[403977747,1769702412751,-3337.828373,0.00038356,120]
[403977748,1769702412799,-541.689135,0.00038356,120]
[403977749,1769702412846,-151.0,0.00038356,120]
[403977750,1769702412896,-3337.828373,0.00038356,120]
[403977751,1769702412942,-151.0,0.00038356,120]
[403977752,1769702412988,-541.689135,0.00038356,120]
[403977753,1769702413033,-3337.828373,0.00038356,120]
[403977754,1769702413080,-151.0,0.00038356,120]
[403977755,1769702413127,-151.0,0.00038356,120]
[403977756,1769702413174,-3337.828373,0.00038356,120]
[403977757,1769702413221,-151.0,0.00038356,120]
[403977758,1769702413267,-151.0,0.00038356,120]
[403977759,1769702413314,-541.689135,0.00038356,120]
[403977760,1769702413362,-3337.828366,0.00038356,120]
[403977761,1769702413411,-248.493954,0.00038356,120]
[403977762,1769702413463,-541.689135,0.00038356,120]
[403977763,1769702413516,-151.0,0.00038356,120]
[403977764,1769702413566,-541.689135,0.00038356,120]
[403977765,1769702413615,-151.0,0.00038356,120]
[403977766,1769702413664,-541.689135,0.00038356,120]
[403977767,1769702413714,-156.668929,0.00038356,120]
[403977768,1769702413764,-541.689135,0.00038356,120]
[403977769,1769702413821,-541.689135,0.00038356,120]
[403977770,1769702413870,-541.689135,0.00038356,120]
[403977771,1769702413922,-541.689135,0.00038356,120]
[403977772,1769702413971,-541.689135,0.00038356,120]
[403977773,1769702414019,-541.689135,0.00038356,120]
[403977774,1769702414067,-541.689135,0.00038356,120]
[403977775,1769702414115,-541.689135,0.00038356,120]
[403977776,1769702414164,-541.689135,0.00038356,120]
[403977777,1769702414212,-541.689126,0.00038356,120]
[403977778,1769702414260,-154.983118,0.00038356,120]
[403977779,1769702414307,-37961.54,0.000386,120]
[403977780,1769702414354,-224.32,0.00038789,120]
[403977781,1769702414402,-4085.3258,0.00038888,30]
[403977782,1769702414451,-1361.9,0.00038968,30]
[403977783,1769702414499,-243.7,0.00038997,30]
[403977784,1769702414558,-1598.29603622,0.00039,120]
[403977785,1769702414606,-194.11392918,0.00039,120]
[403977786,1769702414654,-161.0,0.00039,120]
[403977787,1769702414699,-2000.0,0.00039,30]
[403977788,1769702414741,-577.20936669,0.000391,120]
[403977789,1769702414785,-9212.77,0.00039178,120]
[403977790,1769702414832,-1361.9,0.00039595,120]
[403977791,1769702414879,-3115.21763513,0.00039789,120]
[403977792,1769702414925,-266517.51660927,0.000399,60]
[403977793,1769702414970,-2013.66330191,0.0004,30]
[403977794,1769702415013,-1139.1151089,0.0004,120]
[403977795,1769702415056,-530.48609387,0.0004,120]
[403977796,1769702415099,-160.80141015,0.0004,120]
[403977797,1769702415144,-391.18104047,0.0004,120]
[403977798,1769702415190,-457.45988565,0.0004,120]
[403977799,1769702415233,-4489.94972436,0.0004,120]
[403977800,1769702415276,-9845.541734,0.0004,120]
[403977801,1769702415322,-3157.26132114,0.0004,120]
[403977802,1769702415368,-200.0,0.0004,120]
[403977803,1769702415413,-250.0,0.0004,45]
[403977804,1769702415460,-250.0,0.0004,45]
[403977805,1769702415506,-151.0,0.0004,120]
[403977806,1769702415553,-330.0,0.0004,45]
[403977807,1769702415601,-151.0,0.0004,120]
[403977808,1769702415647,-4451.16319967,0.0004,120]
[403977809,1769702415930,-520.93,0.0004,30]
[403977810,1769702415976,-50000.0,0.0004,70]
[403977811,1769702416023,-10131.91088449,0.0004,120]
[403977812,1769702416070,-150.0,0.0004,120]
[403977813,1769702416117,-150.0,0.0004,120]
[403977814,1769702416164,-150.0,0.0004,120]
[403977815,1769702416214,-150.0,0.0004,120]
[403977816,1769702416263,-150.0,0.0004,120]
[403977817,1769702416309,-150.0,0.0004,120]
[403977818,1769702416355,-150.0,0.0004,120]
[403977819,1769702416410,-150.0,0.0004,120]
[403977820,1769702416458,-150.0,0.0004,120]
[403977821,1769702416506,-150.0,0.0004,120]
[403977822,1769702416554,-150.0,0.0004,120]
[403977823,1769702416599,-150.0,0.0004,120]
[403977824,1769702416643,-150.0,0.0004,120]
[403977825,1769702416692,-150.0,0.0004,120]
[403977826,1769702416737,-150.0,0.0004,120]
[403977827,1769702416782,-150.0,0.0004,120]
[403977828,1769702416827,-150.0,0.0004,120]
[403977829,1769702416873,-150.0,0.0004,120]
[403977830,1769702416916,-274.45,0.0004,30]
[403977831,1769702416962,-295.89,0.0004,120]
[403977832,1769702417007,-332.36,0.0004,120]
[403977833,1769702417051,-237.86,0.0004,120]
[403977834,1769702417097,-1316.93,0.0004,120]
[403977835,1769702417145,-389.28,0.0004,120]
[403977836,1769702417198,-5000.0,0.0004,30]
[403977837,1769702417246,-253.0,0.0004,30]
[403977838,1769702417292,-9212.77,0.0004,120]
[403977839,1769702417338,-183.1576483,0.0004012,120]
[403977840,1769702417387,-1361.9,0.00040221,120]
[403977841,1769702417442,-250.0,0.000405,45]
[403977842,1769702417489,-151.0,0.000406,120]
[403977843,1769702417537,-151.0,0.000407,120]
[403977844,1769702417584,-30000.0,0.000408,120]
[403977845,1769702417629,-30000.0,0.000408,120]
[403977846,1769702417674,-30000.0,0.000408,120]
[403977847,1769702417719,-30000.0,0.000408,120]
[403977848,1769702417765,-50000.0,0.000408,120]
[403977849,1769702417811,-50000.0,0.000408,120]
[403977850,1769702417855,-50000.0,0.000408,120]
[403977851,1769702417898,-50000.0,0.000408,120]
[403977852,1769702417946,-50000.0,0.000408,120]
[403977853,1769702417990,-50000.0,0.000408,120]
[403977854,1769702418035,-41242.0,0.000408,120]
[403977855,1769702418080,-9212.77,0.00040821,120]
[403977856,1769702418125,-1361.9,0.00040848,120]
[403977857,1769702418169,-211.0,0.0004093,30]
[403977858,1769702418214,-3041.97567647,0.00041,120]
[403977859,1769702418261,-250.0,0.00041,45]
[403977860,1769702418306,-1750.90986373,0.00041,30]
[403977861,1769702418350,-3000.0,0.00041,30]
[403977862,1769702418394,-253.0,0.00041,34]
[403977863,1769702418441,-1028.3542782,0.00041,30]
[403977864,1769702418487,-1292.85591054,0.00041068,120]
[403977865,1769702418534,-908.27396166,0.00041068,120]
[403977866,1769702418580,-151.85,0.00041068,120]
[403977867,1769702418625,-154.86,0.00041091,120]
[403977868,1769702418670,-154.86,0.00041095,120]
[403977869,1769702418715,-798.0,0.00041096,120]
[403977870,1769702418760,-522.59,0.00041096,120]
[403977871,1769702418805,-343.84,0.00041096,120]
[403977872,1769702418849,-500.0,0.00041096,120]
[403977873,1769702418896,-491.64683066,0.000411,120]
[403977874,1769702418943,-491.64683066,0.000411,120]
[403977875,1769702418988,-491.64683066,0.000411,120]
[403977876,1769702419033,-491.64683066,0.000411,120]
[403977877,1769702419079,-491.64683066,0.000411,120]
[403977878,1769702419126,-491.64683066,0.000411,120]
[403977879,1769702419172,-491.64683066,0.000411,120]
[403977880,1769702419222,-491.64683066,0.000411,120]
[403977881,1769702419268,-491.64683066,0.000411,120]
[403977882,1769702419312,-491.64683066,0.000411,120]
[403977883,1769702419359,-491.64683066,0.000411,120]
[403977884,1769702419407,-491.64683066,0.000411,120]
[403977885,1769702419452,-491.64683066,0.000411,120]
[403977886,1769702419497,-491.64683066,0.000411,120]
[403977887,1769702419542,-491.64683066,0.000411,120]
[403977888,1769702419588,-491.64683066,0.000411,120]
[403977889,1769702419865,-491.64683066,0.000411,120]
[403977890,1769702419911,-491.64683066,0.000411,120]
[403977891,1769702419956,-491.64683066,0.000411,120]
[403977892,1769702420002,-491.64,0.000411,120]
[403977893,1769702420047,-1147.17593821,0.000411,120]
[403977894,1769702420092,-1147.17593821,0.000411,120]
[403977895,1769702420139,-1147.17593821,0.000411,120]
[403977896,1769702420186,-1147.17593821,0.000411,120]
[403977897,1769702420232,-1147.17593821,0.000411,120]
[403977898,1769702420277,-1147.17593821,0.000411,120]
[403977899,1769702420326,-1147.17593821,0.000411,120]
[403977900,1769702420374,-1147.17593821,0.000411,120]
[403977901,1769702420420,-1147.17593821,0.000411,120]
[403977902,1769702420466,-1147.17593821,0.000411,120]
[403977903,1769702420512,-1147.17593821,0.000411,120]
[403977904,1769702420558,-1147.17593821,0.000411,120]
[403977905,1769702420603,-1147.17593821,0.000411,120]
[403977906,1769702420647,-1147.17593821,0.000411,120]
[403977907,1769702420697,-1147.17593821,0.000411,120]
[403977908,1769702420744,-1147.17593821,0.000411,120]
[403977909,1769702420790,-1147.17593821,0.000411,120]
[403977910,1769702420836,-1147.17593821,0.000411,120]
[403977911,1769702420881,-1147.17593821,0.000411,120]
[403977912,1769702420928,-1147.17,0.000411,120]
[403977913,1769702420975,-154.86,0.00041119,120]
[403977914,1769702421021,-154.85,0.00041119,120]
[403977915,1769702421067,-154.86,0.00041119,120]
[403977916,1769702421112,-150.0,0.00041123,30]
[403977917,1769702421166,-164.39618604,0.00041125,30]
[403977918,1769702421211,-281.5429256,0.00041125,30]
[403977919,1769702421255,-150.0,0.00041128,30]
[403977920,1769702421300,-150.0,0.00041128,30]
[403977921,1769702421344,-150.0,0.00041128,30]
[403977922,1769702421389,-150.0,0.00041137,30]
[403977923,1769702421436,-150.0,0.00041147,30]
[403977924,1769702421481,-150.0,0.0004115,30]
[403977925,1769702421525,-606.24549831,0.00041151,120]
[403977926,1769702421577,-151.8613268,0.00041168,120]
[403977927,1769702421624,-164.39618604,0.00041169,30]
[403977928,1769702421669,-281.5429256,0.00041169,30]
[403977929,1769702421713,-150.0,0.00041183,30]
[403977930,1769702421757,-150.0,0.00041184,30]
[403977931,1769702421804,-154.86,0.00041191,120]
[403977932,1769702421850,-154.86,0.00041195,120]
[403977933,1769702421893,-150.0,0.00041196,30]
[403977934,1769702421952,-150.0,0.00041196,30]
[403977935,1769702421995,-151.0,0.000412,120]
[403977936,1769702422040,-150.0,0.00041207,30]
[403977937,1769702422084,-164.39618604,0.00041213,30]
[403977938,1769702422130,-281.5429256,0.00041213,30]
[403977939,1769702422176,-154.85,0.00041219,120]
[403977940,1769702422222,-154.86,0.00041219,120]
[403977941,1769702422266,-150.0,0.0004124,30]
[403977942,1769702422310,-150.0,0.00041244,30]
[403977943,1769702422354,-150.0,0.00041254,30]
[403977944,1769702422398,-164.39618604,0.00041257,30]
[403977945,1769702422445,-281.5429256,0.00041257,30]
[403977946,1769702422489,-231.32130108,0.0004126,30]
[403977947,1769702422534,-150.0,0.00041264,30]
[403977948,1769702422579,-9041.52240967,0.00041291,120]
[403977949,1769702422624,-154.86,0.00041295,120]
[403977950,1769702422667,-150.0,0.00041297,30]
[403977951,1769702422710,-150.0,0.00041297,30]
[403977952,1769702422755,-164.39618604,0.00041302,30]
[403977953,1769702422799,-281.5429256,0.00041302,30]
[403977954,1769702422842,-150.0,0.00041304,30]
[403977955,1769702422885,-150.0,0.00041312,30]
[403977956,1769702422931,-154.88,0.00041319,120]
[403977957,1769702422974,-150.0,0.00041321,30]
[403977958,1769702423018,-164.39618604,0.00041346,30]
[403977959,1769702423062,-281.5429256,0.00041346,30]
[403977960,1769702423106,-243.7,0.00041349,120]
[403977961,1769702423151,-150.0,0.00041353,30]
[403977962,1769702423198,-150.0,0.00041364,30]
[403977963,1769702423242,-150.0,0.00041371,30]
[403977964,1769702423287,-150.0,0.00041378,30]
[403977965,1769702423335,-267.24367786,0.00041389,45]
[403977966,1769702423383,-164.39618604,0.0004139,30]
[403977967,1769702423431,-281.5429256,0.0004139,30]
[403977968,1769702423479,-150.0,0.0004139,30]
[403977969,1769702423754,-154.86,0.00041395,120]
[403977970,1769702423801,-150.0,0.00041409,30]
[403977971,1769702423848,-150.0,0.00041424,30]
[403977972,1769702423894,-231.32130108,0.00041425,30]
[403977973,1769702423944,-150.0,0.00041429,30]
[403977974,1769702423994,-150.0,0.00041435,30]
[403977975,1769702424040,-150.0,0.00041435,30]
[403977976,1769702424088,-164.39618604,0.00041435,30]
[403977978,1769702424136,-281.5429256,0.00041435,30]
[403977980,1769702424183,-150.0,0.00041465,30]
[403977982,1769702424228,-150.0,0.00041465,30]
[403977984,1769702424268,-150.0,0.00041465,30]
[403977985,1769702424312,-1361.9,0.00041475,120]
[403977987,1769702424360,-164.39618604,0.00041479,30]
[403977989,1769702424408,-281.5429256,0.00041479,30]
[403977991,1769702424453,-150.0,0.00041484,30]
[403977992,1769702424497,-301.68,0.00041485,30]
[403977994,1769702424543,-150.0,0.00041485,30]
[403977996,1769702424591,-150.0,0.00041488,30]
[403977998,1769702424639,-150.0,0.00041491,30]
[403978000,1769702424692,-154.86,0.00041495,120]
[403978002,1769702424740,-151.0,0.000415,120]
[403978005,1769702424789,-509.527415,0.000415,120]
[403978006,1769702424840,-150.0,0.00041521,30]
[403978009,1769702424891,-164.39618604,0.00041523,30]
[403978011,1769702424943,-281.5429256,0.00041523,30]
[403978012,1769702424996,-150.0,0.00041544,30]
[403978014,1769702425045,-150.0,0.00041546,30]
[403978016,1769702425096,-150.0,0.00041548,30]
[403978018,1769702425144,-164.39618604,0.00041567,30]
[403978021,1769702425195,-281.5429256,0.00041567,30]
[403978022,1769702425243,-150.0,0.00041578,30]
[403978024,1769702425291,-231.32130108,0.00041589,30]
[403978026,1769702425338,-154.86,0.00041595,120]
[403978029,1769702425387,-150.0,0.00041604,30]
[403978030,1769702425436,-150.0,0.00041605,30]
[403978032,1769702425485,-150.0,0.00041605,30]
[403978034,1769702425539,-164.39618604,0.00041612,30]
[403978037,1769702425589,-281.5429256,0.00041612,30]
[403978038,1769702425638,-150.0,0.00041634,30]
[403978040,1769702425687,-150.0,0.00041634,30]
[403978042,1769702425735,-150.0,0.00041634,30]
[403978044,1769702425780,-150.0,0.00041634,30]
[403978045,1769702425828,-9212.77,0.00041643,120]
[403978046,1769702425874,-164.39618604,0.00041656,30]
[403978047,1769702425921,-281.5429256,0.00041656,30]
[403978049,1769702425966,-150.0,0.00041662,30]
[403978051,1769702426011,-150.0,0.00041663,30]
[403978053,1769702426058,-150.0,0.00041664,30]
[403978056,1769702426108,-150.0,0.0004169,30]
[403978057,1769702426162,-154.86007624,0.00041695,120]
[403978060,1769702426212,-3009.91600087,0.000417,30]
[403978061,1769702426260,-468.78,0.000417,120]
[403978063,1769702426309,-164.39618604,0.000417,30]
[403978066,1769702426359,-281.5429256,0.000417,30]
[403978068,1769702426410,-150.0,0.00041719,30]
[403978070,1769702426463,-150.0,0.00041721,30]
[403978072,1769702426514,-150.0,0.00041724,30]
[403978073,1769702426564,-164.39618604,0.00041744,30]
[403978075,1769702426614,-281.5429256,0.00041744,30]
[403978077,1769702426666,-150.0,0.00041746,30]
[403978079,1769702426718,-231.32130108,0.00041753,30]
[403978081,1769702426766,-150.0,0.00041776,30]
[403978083,1769702426813,-150.0,0.0004178,30]
[403978085,1769702426862,-150.0,0.00041784,30]
[403978088,1769702426911,-164.39618604,0.00041789,30]
[403978090,1769702426960,-281.5429256,0.00041789,30]
[403978091,1769702427005,-603.61365087,0.000418,120]
[403978093,1769702427052,-218.12,0.000418,60]
[403978095,1769702427096,-150.0,0.00041802,30]
[403978096,1769702427142,-150.0,0.00041802,30]
[403978097,1769702427195,-150.0,0.00041802,30]
[403978098,1769702427241,-150.0,0.00041833,30]
[403978099,1769702427287,-150.0,0.00041833,30]
[403978100,1769702427332,-164.39618604,0.00041833,30]
[403978101,1769702427377,-281.5429256,0.00041833,30]
[403978102,1769702427423,-150.0,0.00041838,30]
[403978103,1769702427468,-150.0,0.00041844,30]
[403978104,1769702427515,-150.0,0.00041858,30]
[403978105,1769702427564,-164.39618604,0.00041877,30]
[403978106,1769702427830,-281.5429256,0.00041877,30]
[403978107,1769702427875,-150.0,0.00041877,30]
[403978108,1769702427919,-150.0,0.0004189,30]
[403978109,1769702427964,-150.0,0.00041897,30]
[403978110,1769702428009,-151.0,0.000419,120]
[403978111,1769702428053,-5272.18801232,0.000419,120]
[403978112,1769702428098,-50000.0,0.000419,30]
[403978113,1769702428143,-1893.17330617,0.000419,120]
[403978114,1769702428191,-1893.17330617,0.000419,120]
[403978115,1769702428238,-1893.17330617,0.000419,120]
[403978116,1769702428285,-1893.17330617,0.000419,120]
[403978117,1769702428333,-1893.17330617,0.000419,120]
[403978118,1769702428382,-1893.17330617,0.000419,120]
[403978119,1769702428430,-1893.17330617,0.000419,120]
[403978120,1769702428477,-1893.17330617,0.000419,120]
[403978121,1769702428527,-1893.17330617,0.000419,120]
[403978122,1769702428579,-1893.17330617,0.000419,120]
[403978123,1769702428628,-1893.17330617,0.000419,120]
[403978124,1769702428675,-1893.17330617,0.000419,120]
[403978125,1769702428724,-1893.17330617,0.000419,120]
[403978126,1769702428772,-1893.17330617,0.000419,120]
[403978127,1769702428819,-1893.17330617,0.000419,120]
[403978128,1769702428865,-1893.17330617,0.000419,120]
[403978129,1769702428914,-1893.17330617,0.000419,120]
[403978130,1769702428961,-1893.17330617,0.000419,120]
[403978131,1769702429008,-1893.17330617,0.000419,120]
[403978132,1769702429054,-1893.17330617,0.000419,120]
[403978133,1769702429101,-380.51,0.00041902,120]
[403978134,1769702429166,-150.0,0.00041904,30]
[403978135,1769702429217,-1200.0,0.00041907,60]
[403978136,1769702429266,-150.0,0.00041915,30]
[403978137,1769702429316,-231.32130108,0.00041918,30]
[403978138,1769702429366,-150.0,0.00041918,120]
[403978139,1769702429425,-164.39618604,0.00041921,30]
[403978140,1769702429474,-281.5429256,0.00041921,30]
[403978141,1769702429524,-150.0,0.00041947,30]
[403978142,1769702429577,-150.0,0.00041955,30]
[403978143,1769702429626,-150.0,0.00041964,30]
[403978144,1769702429672,-164.39618604,0.00041966,30]
[403978145,1769702429720,-281.5429256,0.00041966,30]
[403978146,1769702429767,-150.0,0.00041971,30]
[403978147,1769702429821,-150.0,0.00041971,30]
[403978148,1769702429870,-231.23948509,0.00041999,120]
[403978149,1769702429921,-500.0,0.00042,120]
[403978150,1769702429968,-287.09489252,0.00042,120]
[403978151,1769702430018,-460.38809714,0.00042,120]
[403978152,1769702430065,-264.14733226,0.00042,120]
[403978153,1769702430112,-152.88569259,0.00042,30]
[403978154,1769702430163,-200.0,0.00042,120]
[403978155,1769702430211,-18074.0,0.00042,120]
[403978156,1769702430258,-500.0,0.00042,120]
[403978157,1769702430305,-500.0,0.00042,120]
[403978158,1769702430352,-572.5554008,0.00042,120]
[403978159,1769702430404,-1000.0,0.00042,120]
[403978160,1769702430455,-50000.0,0.00042,90]
[403978161,1769702430508,-200.0,0.00042,120]
[403978162,1769702430557,-253.0,0.00042,37]
[403978163,1769702430607,-1028.0,0.00042,30]
[403978164,1769702430661,-543.0,0.00042,120]
[403978165,1769702430711,-150.0,0.00042004,30]
[403978166,1769702430762,-164.39618604,0.0004201,30]
[403978167,1769702430813,-281.5429256,0.0004201,30]
[403978168,1769702430863,-150.0,0.00042014,30]
[403978169,1769702430912,-150.0,0.00042024,30]
[403978170,1769702430959,-150.0,0.00042027,30]
[403978171,1769702431008,-164.39618604,0.00042054,30]
[403978172,1769702431056,-281.5429256,0.00042054,30]
[403978173,1769702431104,-150.0,0.00042061,30]